[Event "Titled Tuesday Blitz February 14 Late 2023"]
[White "ritanovikova"]
[Black "Rottenwohrer Suarez, Juan"]
[BlackFideId "32068182"]
[WhiteElo "2189"]
[BlackElo "2265"]
[Result "0-1"]
[Round "06"]
[TimeControl "180+2"]
[Date "2023.02.14"]
[WhiteClock "0:00:28"]
[BlackClock "0:00:36"]

1. d4 {[%clk 0:03:00]}  Nf6 {[%clk 0:03:00]} 2. Bf4 {[%clk 0:02:59]}  g6 {[%clk 0:02:59]} 3. e3 {[%clk 0:02:58]}  Bg7 {[%clk 0:03:00]} 4. Nd2 {[%clk 0:02:57]}  c5 {[%clk 0:02:57]} 5. c3 {[%clk 0:02:55]}  b6 {[%clk 0:02:56]} 6. h3 {[%clk 0:02:54]}  O-O {[%clk 0:02:55]} 7. Ngf3 {[%clk 0:02:53]}  d6 {[%clk 0:02:55]} 8. Be2 {[%clk 0:02:49]}  Bb7 {[%clk 0:02:55]} 9. O-O {[%clk 0:02:49]}  Nbd7 {[%clk 0:02:56]} 10. a4 {[%clk 0:02:46]}  a6 {[%clk 0:02:57]} 11. Re1 {[%clk 0:02:39]}  Qc7 {[%clk 0:02:57]} 12. Bf1 {[%clk 0:02:37]}  Bc6 {[%clk 0:02:58]} 13. e4 {[%clk 0:02:36]}  e5 {[%clk 0:02:52]} 14. dxe5 {[%clk 0:02:31]}  Nxe5 {[%clk 0:02:48]} 15. Nxe5 {[%clk 0:02:29]}  dxe5 {[%clk 0:02:49]} 16. Bh2 {[%clk 0:02:27]}  b5 {[%clk 0:02:48]} 17. axb5 {[%clk 0:02:21]}  axb5 {[%clk 0:02:48]} 18. Qc2 {[%clk 0:02:21]}  Nh5 {[%clk 0:02:41]} 19. Be2 {[%clk 0:02:09]}  Nf4 {[%clk 0:02:41]} 20. Bf3 {[%clk 0:02:09]}  Rad8 {[%clk 0:02:36]} 21. Bxf4 {[%clk 0:02:07]}  exf4 {[%clk 0:02:35]} 22. Nb3 {[%clk 0:02:07]}  c4 {[%clk 0:02:27]} 23. Nc1 {[%clk 0:01:38]}  Qb6 {[%clk 0:02:21]} 24. Ne2 {[%clk 0:01:36]}  Be5 {[%clk 0:02:16]} 25. Red1 {[%clk 0:01:33]}  h5 {[%clk 0:02:03]} 26. Rd2 {[%clk 0:01:21]}  Rxd2 {[%clk 0:02:00]} 27. Qxd2 {[%clk 0:01:21]}  Rd8 {[%clk 0:02:01]} 28. Qc1 {[%clk 0:01:22]}  Qc7 {[%clk 0:01:17]} 29. Ra7 {[%clk 0:01:02]}  Qxa7 {[%clk 0:01:02]} 30. Nxf4 {[%clk 0:00:52]}  Qd7 {[%clk 0:00:42]} 31. Nxh5 {[%clk 0:00:36]}  Qd2 {[%clk 0:00:37]} 32. Qa1 {[%clk 0:00:30]}  gxh5 {[%clk 0:00:37]} 33. Qa6 {[%clk 0:00:28]}  Qe1# {[%clk 0:00:36]} 0-1


[Site "https://www.chess.com"]

[Event "Titled Tuesday Blitz February 14 Late 2023"]
[White "Golubev, Mikhail"]
[Black "Chabris, Christopher"]
[WhiteFideId "14100983"]
[BlackFideId "2005263"]
[WhiteElo "2461"]
[BlackElo "2053"]
[Result "1-0"]
[Round "06"]
[TimeControl "180+2"]
[Date "2023.02.14"]
[WhiteClock "0:00:51"]
[BlackClock "0:00:02"]

1. e4 {[%clk 0:03:00]}  c5 {[%clk 0:02:59]} 2. Nf3 {[%clk 0:03:00]}  d6 {[%clk 0:02:59]} 3. d4 {[%clk 0:03:00]}  cxd4 {[%clk 0:02:59]} 4. Nxd4 {[%clk 0:03:01]}  Nf6 {[%clk 0:02:59]} 5. Nc3 {[%clk 0:03:01]}  a6 {[%clk 0:02:59]} 6. Bc4 {[%clk 0:03:00]}  e6 {[%clk 0:02:59]} 7. O-O {[%clk 0:03:00]}  Nbd7 {[%clk 0:02:59]} 8. Bxe6 {[%clk 0:02:58]}  fxe6 {[%clk 0:02:54]} 9. Nxe6 {[%clk 0:02:59]}  Qa5 {[%clk 0:02:32]} 10. Bd2 {[%clk 0:02:58]}  Qb6 {[%clk 0:01:21]} 11. Nd5 {[%clk 0:02:42]}  Nxd5 {[%clk 0:01:20]} 12. exd5 {[%clk 0:02:43]}  Nf6 {[%clk 0:01:13]} 13. Be3 {[%clk 0:02:28]}  Qa5 {[%clk 0:01:12]} 14. b4 {[%clk 0:02:28]}  Qxb4 {[%clk 0:01:07]} 15. Nc7+ {[%clk 0:02:28]}  Kf7 {[%clk 0:01:05]} 16. Nxa8 {[%clk 0:02:29]}  Be7 {[%clk 0:00:57]} 17. Nc7 {[%clk 0:02:19]}  Qc4 {[%clk 0:00:49]} 18. Bb6 {[%clk 0:02:00]}  Bf5 {[%clk 0:00:45]} 19. Re1 {[%clk 0:01:55]}  Ne4 {[%clk 0:00:40]} 20. Qf3 {[%clk 0:01:43]}  g6 {[%clk 0:00:15]} 21. Ne6 {[%clk 0:01:06]}  h5 {[%clk 0:00:14]} 22. Nd4 {[%clk 0:00:58]}  Rc8 {[%clk 0:00:10]} 23. Nxf5 {[%clk 0:00:54]}  gxf5 {[%clk 0:00:09]} 24. Qxf5+ {[%clk 0:00:53]}  Nf6 {[%clk 0:00:02]} 25. Rxe7+ {[%clk 0:00:51]} 1-0


[Site "https://www.chess.com"]

[Event "Titled Tuesday Blitz February 14 Late 2023"]
[White "Martic, Ivan"]
[Black "Leonte, Sebastian-Marian"]
[WhiteFideId "929301"]
[BlackFideId "1268767"]
[WhiteElo "2301"]
[BlackElo "1279"]
[Result "1-0"]
[Round "06"]
[TimeControl "180+2"]
[Date "2023.02.14"]
[WhiteClock "0:01:43"]
[BlackClock "0:00:18"]

1. e4 {[%clk 0:03:00]}  e5 {[%clk 0:02:57]} 2. f4 {[%clk 0:03:00]}  exf4 {[%clk 0:02:50]} 3. Nf3 {[%clk 0:03:00]}  d5 {[%clk 0:02:44]} 4. exd5 {[%clk 0:03:00]}  Nf6 {[%clk 0:02:44]} 5. d4 {[%clk 0:02:55]}  Nxd5 {[%clk 0:02:41]} 6. Bc4 {[%clk 0:02:51]}  Be7 {[%clk 0:02:26]} 7. O-O {[%clk 0:02:49]}  O-O {[%clk 0:02:24]} 8. Bxd5 {[%clk 0:02:48]}  Qxd5 {[%clk 0:02:21]} 9. Bxf4 {[%clk 0:02:49]}  Bg4 {[%clk 0:02:09]} 10. Bxc7 {[%clk 0:02:38]}  Nc6 {[%clk 0:02:07]} 11. c3 {[%clk 0:02:36]}  Bf6 {[%clk 0:01:48]} 12. Nbd2 {[%clk 0:02:36]}  Rfe8 {[%clk 0:01:37]} 13. Qb3 {[%clk 0:02:29]}  Qh5 {[%clk 0:01:26]} 14. Qxb7 {[%clk 0:02:20]}  Ne7 {[%clk 0:01:19]} 15. Rae1 {[%clk 0:02:13]}  Nf5 {[%clk 0:01:06]} 16. Be5 {[%clk 0:02:04]}  Bxe5 {[%clk 0:00:45]} 17. Rxe5 {[%clk 0:02:04]}  Rab8 {[%clk 0:00:30]} 18. Rfe1 {[%clk 0:01:54]}  f6 {[%clk 0:00:24]} 19. Qd5+ {[%clk 0:01:51]}  Kh8 {[%clk 0:00:23]} 20. Rxe8+ {[%clk 0:01:46]}  Rxe8 {[%clk 0:00:24]} 21. Rxe8+ {[%clk 0:01:45]}  Qxe8 {[%clk 0:00:25]} 22. Qe4 {[%clk 0:01:45]}  Qg6 {[%clk 0:00:18]} 23. Qa8+ {[%clk 0:01:43]} 1-0


[Site "https://www.chess.com"]

[Event "Titled Tuesday Blitz February 14 Late 2023"]
[White "WindWhistler11"]
[Black "Cueto, Jonny"]
[BlackFideId "3300145"]
[WhiteElo "2627"]
[BlackElo "2122"]
[Result "1-0"]
[Round "06"]
[TimeControl "180+2"]
[Date "2023.02.14"]
[WhiteClock "0:00:08"]
[BlackClock "0:01:02"]

1. Nf3 {[%clk 0:00:36]}  e6 {[%clk 0:02:57]} 2. g3 {[%clk 0:00:37]}  d5 {[%clk 0:02:57]} 3. d3 {[%clk 0:00:38]}  Nf6 {[%clk 0:02:58]} 4. Nbd2 {[%clk 0:00:38]}  Be7 {[%clk 0:02:59]} 5. e4 {[%clk 0:00:39]}  O-O {[%clk 0:03:00]} 6. Bg2 {[%clk 0:00:40]}  b6 {[%clk 0:03:00]} 7. O-O {[%clk 0:00:40]}  Bb7 {[%clk 0:03:01]} 8. e5 {[%clk 0:00:41]}  Nfd7 {[%clk 0:03:01]} 9. Re1 {[%clk 0:00:42]}  c5 {[%clk 0:03:01]} 10. Nf1 {[%clk 0:00:42]}  Nc6 {[%clk 0:03:02]} 11. h4 {[%clk 0:00:43]}  Qc7 {[%clk 0:03:02]} 12. Bf4 {[%clk 0:00:44]}  Rac8 {[%clk 0:03:03]} 13. h5 {[%clk 0:00:44]}  c4 {[%clk 0:03:03]} 14. h6 {[%clk 0:00:45]}  g6 {[%clk 0:03:00]} 15. d4 {[%clk 0:00:45]}  c3 {[%clk 0:02:58]} 16. b3 {[%clk 0:00:45]}  a5 {[%clk 0:02:42]} 17. N1h2 {[%clk 0:00:45]}  a4 {[%clk 0:02:42]} 18. Ng4 {[%clk 0:00:44]}  axb3 {[%clk 0:02:43]} 19. axb3 {[%clk 0:00:44]}  Ra8 {[%clk 0:02:43]} 20. Rb1 {[%clk 0:00:42]}  Ra2 {[%clk 0:02:16]} 21. Bf1 {[%clk 0:00:42]}  Nb4 {[%clk 0:02:16]} 22. Rc1 {[%clk 0:00:41]}  Rb2 {[%clk 0:02:12]} 23. Bb5 {[%clk 0:00:38]}  Bc6 {[%clk 0:02:11]} 24. Bd3 {[%clk 0:00:37]}  Na2 {[%clk 0:02:04]} 25. Ra1 {[%clk 0:00:35]}  Nb4 {[%clk 0:02:02]} 26. Bg5 {[%clk 0:00:34]}  Bxg5 {[%clk 0:01:54]} 27. Nxg5 {[%clk 0:00:35]}  Ra8 {[%clk 0:01:50]} 28. Re3 {[%clk 0:00:29]}  Rxa1 {[%clk 0:01:44]} 29. Qxa1 {[%clk 0:00:26]}  Nxc2 {[%clk 0:01:45]} 30. Bxc2 {[%clk 0:00:13]}  Rxc2 {[%clk 0:01:45]} 31. Qd1 {[%clk 0:00:14]}  Rd2 {[%clk 0:01:39]} 32. Qf3 {[%clk 0:00:14]}  Nb8 {[%clk 0:01:33]} 33. Qf6 {[%clk 0:00:12]}  Kf8 {[%clk 0:01:26]} 34. Nxh7+ {[%clk 0:00:12]}  Ke8 {[%clk 0:01:23]} 35. Rxc3 {[%clk 0:00:12]}  Qa7 {[%clk 0:01:16]} 36. Qh8+ {[%clk 0:00:08]}  Ke7 {[%clk 0:01:16]} 37. Qf8+ {[%clk 0:00:07]}  Kd7 {[%clk 0:01:07]} 38. Qxf7+ {[%clk 0:00:07]}  Kd8 {[%clk 0:01:02]} 39. Qxa7 {[%clk 0:00:08]} 1-0


[Site "https://www.chess.com"]

[Event "Titled Tuesday Blitz February 14 Late 2023"]
[White "Rose, Felix"]
[Black "Melikhov, Evgeny V."]
[WhiteFideId "5105722"]
[BlackFideId "4122046"]
[WhiteElo "2091"]
[BlackElo "2269"]
[Result "0-1"]
[Round "06"]
[TimeControl "180+2"]
[Date "2023.02.14"]
[WhiteClock "0:00:15"]
[BlackClock "0:00:07"]

1. e4 {[%clk 0:02:59]}  c5 {[%clk 0:02:59]} 2. Nf3 {[%clk 0:02:59]}  d6 {[%clk 0:02:59]} 3. d4 {[%clk 0:03:00]}  cxd4 {[%clk 0:03:00]} 4. Nxd4 {[%clk 0:03:01]}  Nf6 {[%clk 0:03:00]} 5. Nc3 {[%clk 0:02:57]}  a6 {[%clk 0:03:01]} 6. Be3 {[%clk 0:02:56]}  e5 {[%clk 0:03:01]} 7. Nb3 {[%clk 0:02:56]}  Be6 {[%clk 0:03:01]} 8. f3 {[%clk 0:02:57]}  Be7 {[%clk 0:03:01]} 9. Qd2 {[%clk 0:02:57]}  O-O {[%clk 0:03:01]} 10. O-O-O {[%clk 0:02:58]}  Nbd7 {[%clk 0:03:01]} 11. g4 {[%clk 0:02:59]}  b5 {[%clk 0:03:00]} 12. g5 {[%clk 0:02:59]}  Nh5 {[%clk 0:03:00]} 13. Kb1 {[%clk 0:02:56]}  Nb6 {[%clk 0:02:54]} 14. Na5 {[%clk 0:02:54]}  Qc7 {[%clk 0:02:48]} 15. Rg1 {[%clk 0:02:53]}  Nc4 {[%clk 0:02:46]} 16. Nxc4 {[%clk 0:02:52]}  bxc4 {[%clk 0:02:43]} 17. Nd5 {[%clk 0:02:18]}  Bxd5 {[%clk 0:02:42]} 18. Qxd5 {[%clk 0:02:10]}  c3 {[%clk 0:02:38]} 19. Qc4 {[%clk 0:02:10]}  Qxc4 {[%clk 0:02:25]} 20. Bxc4 {[%clk 0:02:11]}  Rfc8 {[%clk 0:02:24]} 21. Bd5 {[%clk 0:02:09]}  Rab8 {[%clk 0:02:23]} 22. b3 {[%clk 0:02:07]}  Rc7 {[%clk 0:02:12]} 23. Rd3 {[%clk 0:02:02]}  a5 {[%clk 0:01:22]} 24. a4 {[%clk 0:01:54]}  g6 {[%clk 0:01:16]} 25. Ka2 {[%clk 0:01:52]}  Rb4 {[%clk 0:01:10]} 26. Bc4 {[%clk 0:01:21]}  Rcxc4 {[%clk 0:01:05]} 27. bxc4 {[%clk 0:01:21]}  Rb2+ {[%clk 0:01:05]} 28. Ka1 {[%clk 0:01:15]}  Rxc2 {[%clk 0:01:05]} 29. h4 {[%clk 0:01:08]}  Rh2 {[%clk 0:00:52]} 30. Rxc3 {[%clk 0:01:05]}  Rxh4 {[%clk 0:00:52]} 31. Rb3 {[%clk 0:01:01]}  Nf4 {[%clk 0:00:49]} 32. Rb8+ {[%clk 0:00:56]}  Kg7 {[%clk 0:00:49]} 33. Re8 {[%clk 0:00:44]}  Bf8 {[%clk 0:00:38]} 34. Ra8 {[%clk 0:00:44]}  Ne2 {[%clk 0:00:16]} 35. Rb1 {[%clk 0:00:40]}  Nc3 {[%clk 0:00:13]} 36. Rb3 {[%clk 0:00:32]}  Nxa4 {[%clk 0:00:12]} 37. Rxa5 {[%clk 0:00:26]}  Nc5 {[%clk 0:00:10]} 38. Bxc5 {[%clk 0:00:26]}  dxc5 {[%clk 0:00:10]} 39. Rb8 {[%clk 0:00:25]}  Be7 {[%clk 0:00:08]} 40. Re8 {[%clk 0:00:24]}  Bxg5 {[%clk 0:00:08]} 41. Rxc5 {[%clk 0:00:24]}  Be3 {[%clk 0:00:08]} 42. Rcc8 {[%clk 0:00:24]}  Bd4+ {[%clk 0:00:08]} 43. Ka2 {[%clk 0:00:24]}  Rf4 {[%clk 0:00:08]} 44. c5 {[%clk 0:00:24]}  Rxf3 {[%clk 0:00:08]} 45. c6 {[%clk 0:00:24]}  Rc3 {[%clk 0:00:09]} 46. c7 {[%clk 0:00:24]}  h5 {[%clk 0:00:07]} 47. Rh8 {[%clk 0:00:23]}  Kf6 {[%clk 0:00:07]} 48. Rhe8 {[%clk 0:00:21]}  h4 {[%clk 0:00:07]} 49. Rh8 {[%clk 0:00:22]}  h3 {[%clk 0:00:07]} 50. Rh7 {[%clk 0:00:19]}  g5 {[%clk 0:00:06]} 51. Rf8 {[%clk 0:00:15]}  Rxc7 {[%clk 0:00:05]} 52. Rxh3 {[%clk 0:00:16]}  Kg6 {[%clk 0:00:05]} 53. Rfh8 {[%clk 0:00:15]}  Kf6 {[%clk 0:00:04]} 54. R3h6+ {[%clk 0:00:16]}  Ke7 {[%clk 0:00:05]} 55. Kb3 {[%clk 0:00:16]}  Rc3+ {[%clk 0:00:05]} 56. Kb4 {[%clk 0:00:16]}  Re3 {[%clk 0:00:06]} 57. Rg8 {[%clk 0:00:15]}  Rxe4 {[%clk 0:00:06]} 58. Rxg5 {[%clk 0:00:15]}  Be3+ {[%clk 0:00:06]} 59. Kb5 {[%clk 0:00:15]}  Bxg5 {[%clk 0:00:07]} 0-1


[Site "https://www.chess.com"]

[Event "Titled Tuesday Blitz February 14 Late 2023"]
[White "Abdi, Farzad"]
[Black "Figorito, Nick"]
[WhiteFideId "2076829"]
[BlackFideId "30923689"]
[WhiteElo "2068"]
[BlackElo "2036"]
[Result "1-0"]
[Round "06"]
[TimeControl "180+2"]
[Date "2023.02.14"]
[WhiteClock "0:00:21"]
[BlackClock "0:00:08"]

1. e4 {[%clk 0:03:00]}  e6 {[%clk 0:03:00]} 2. d4 {[%clk 0:03:00]}  d5 {[%clk 0:03:01]} 3. e5 {[%clk 0:03:00]}  c5 {[%clk 0:03:01]} 4. c3 {[%clk 0:03:00]}  Bd7 {[%clk 0:03:02]} 5. Nf3 {[%clk 0:03:00]}  Qb6 {[%clk 0:03:02]} 6. Nbd2 {[%clk 0:02:54]}  Bb5 {[%clk 0:03:03]} 7. Bxb5+ {[%clk 0:02:51]}  Qxb5 {[%clk 0:03:03]} 8. Qe2 {[%clk 0:02:52]}  Qxe2+ {[%clk 0:03:04]} 9. Kxe2 {[%clk 0:02:52]}  a5 {[%clk 0:03:02]} 10. Nb3 {[%clk 0:02:52]}  b6 {[%clk 0:02:58]} 11. a4 {[%clk 0:02:50]}  Nc6 {[%clk 0:02:55]} 12. Be3 {[%clk 0:02:49]}  c4 {[%clk 0:02:45]} 13. Nbd2 {[%clk 0:02:48]}  Nge7 {[%clk 0:02:41]} 14. b3 {[%clk 0:02:48]}  cxb3 {[%clk 0:02:40]} 15. Rhb1 {[%clk 0:02:47]}  Nc8 {[%clk 0:02:34]} 16. Rxb3 {[%clk 0:02:47]}  Be7 {[%clk 0:02:34]} 17. c4 {[%clk 0:02:46]}  Nb4 {[%clk 0:02:26]} 18. cxd5 {[%clk 0:02:43]}  Nxd5 {[%clk 0:02:23]} 19. Rc1 {[%clk 0:02:41]}  O-O {[%clk 0:02:22]} 20. Nc4 {[%clk 0:02:25]}  Rb8 {[%clk 0:02:09]} 21. Bg5 {[%clk 0:02:24]}  Bxg5 {[%clk 0:02:06]} 22. Nxg5 {[%clk 0:02:23]}  Nce7 {[%clk 0:01:57]} 23. Nd6 {[%clk 0:02:12]}  h6 {[%clk 0:01:53]} 24. Nge4 {[%clk 0:02:09]}  Nc8 {[%clk 0:01:38]} 25. g3 {[%clk 0:02:03]}  Nxd6 {[%clk 0:01:36]} 26. Nxd6 {[%clk 0:02:02]}  Rfd8 {[%clk 0:01:30]} 27. Rc6 {[%clk 0:01:41]}  Rd7 {[%clk 0:01:27]} 28. Rb1 {[%clk 0:01:37]}  Nb4 {[%clk 0:01:22]} 29. Rc4 {[%clk 0:01:34]}  Nd5 {[%clk 0:01:15]} 30. Rbc1 {[%clk 0:01:31]}  Kh7 {[%clk 0:01:14]} 31. Rc8 {[%clk 0:01:27]}  Rxc8 {[%clk 0:00:59]} 32. Rxc8 {[%clk 0:01:28]}  f6 {[%clk 0:00:58]} 33. f4 {[%clk 0:01:27]}  f5 {[%clk 0:00:48]} 34. Kd2 {[%clk 0:01:23]}  g5 {[%clk 0:00:40]} 35. fxg5 {[%clk 0:01:12]}  hxg5 {[%clk 0:00:40]} 36. Re8 {[%clk 0:01:07]}  Nc7 {[%clk 0:00:35]} 37. Rb8 {[%clk 0:01:04]}  Nd5 {[%clk 0:00:35]} 38. Kd3 {[%clk 0:01:00]}  f4 {[%clk 0:00:34]} 39. gxf4 {[%clk 0:00:58]}  gxf4 {[%clk 0:00:35]} 40. Ke4 {[%clk 0:00:58]}  Rg7 {[%clk 0:00:31]} 41. Re8 {[%clk 0:00:54]}  Rg6 {[%clk 0:00:30]} 42. h4 {[%clk 0:00:33]}  Rh6 {[%clk 0:00:29]} 43. Nf7 {[%clk 0:00:28]}  Rxh4 {[%clk 0:00:26]} 44. Rxe6 {[%clk 0:00:26]}  Nc3+ {[%clk 0:00:21]} 45. Kf3 {[%clk 0:00:26]}  Nxa4 {[%clk 0:00:18]} 46. Ng5+ {[%clk 0:00:24]}  Kg7 {[%clk 0:00:18]} 47. Ne4 {[%clk 0:00:25]}  Nb2 {[%clk 0:00:14]} 48. Rxb6 {[%clk 0:00:23]}  Nc4 {[%clk 0:00:15]} 49. Rb7+ {[%clk 0:00:23]}  Kf8 {[%clk 0:00:14]} 50. Nf6 {[%clk 0:00:22]}  a4 {[%clk 0:00:10]} 51. e6 {[%clk 0:00:22]}  Nd6 {[%clk 0:00:09]} 52. Rd7 {[%clk 0:00:21]}  Ne8 {[%clk 0:00:08]} 53. Rf7# {[%clk 0:00:21]} 1-0


[Site "https://www.chess.com"]

[Event "Titled Tuesday Blitz February 14 Late 2023"]
[White "De Souza, Cristiano Gomes"]
[Black "Sarkar, Justin"]
[WhiteFideId "2151758"]
[BlackFideId "2010011"]
[WhiteElo "2018"]
[BlackElo "2309"]
[Result "0-1"]
[Round "06"]
[TimeControl "180+2"]
[Date "2023.02.14"]
[WhiteClock "0:01:46"]
[BlackClock "0:00:02"]

1. d4 {[%clk 0:03:00]}  d5 {[%clk 0:02:44]} 2. c4 {[%clk 0:02:56]}  c6 {[%clk 0:02:42]} 3. Nf3 {[%clk 0:02:55]}  Nf6 {[%clk 0:02:40]} 4. Nc3 {[%clk 0:02:56]}  e6 {[%clk 0:02:33]} 5. Bg5 {[%clk 0:02:55]}  dxc4 {[%clk 0:02:30]} 6. e4 {[%clk 0:02:55]}  b5 {[%clk 0:02:28]} 7. e5 {[%clk 0:02:55]}  h6 {[%clk 0:02:27]} 8. Bh4 {[%clk 0:02:56]}  g5 {[%clk 0:02:25]} 9. exf6 {[%clk 0:02:56]}  gxh4 {[%clk 0:02:24]} 10. Ne5 {[%clk 0:02:57]}  Qxf6 {[%clk 0:02:20]} 11. a4 {[%clk 0:02:53]}  Bb7 {[%clk 0:01:15]} 12. axb5 {[%clk 0:02:51]}  cxb5 {[%clk 0:01:13]} 13. Nxb5 {[%clk 0:02:51]}  Bb4+ {[%clk 0:01:10]} 14. Nc3 {[%clk 0:02:50]}  O-O {[%clk 0:00:42]} 15. Bxc4 {[%clk 0:02:46]}  Nc6 {[%clk 0:00:26]} 16. O-O {[%clk 0:02:32]}  Nxe5 {[%clk 0:00:17]} 17. dxe5 {[%clk 0:02:32]}  Qxe5 {[%clk 0:00:14]} 18. Qg4+ {[%clk 0:02:30]}  Qg5 {[%clk 0:00:13]} 19. Qxg5+ {[%clk 0:02:20]}  hxg5 {[%clk 0:00:13]} 20. Nb5 {[%clk 0:02:18]}  a5 {[%clk 0:00:11]} 21. Rad1 {[%clk 0:02:12]}  Rac8 {[%clk 0:00:10]} 22. Be2 {[%clk 0:02:10]}  Rc2 {[%clk 0:00:09]} 23. Bg4 {[%clk 0:02:00]}  Rxb2 {[%clk 0:00:08]} 24. Nd6 {[%clk 0:02:00]}  Ba6 {[%clk 0:00:08]} 25. Ne4 {[%clk 0:01:56]}  Bxf1 {[%clk 0:00:06]} 26. Rxf1 {[%clk 0:01:56]}  f5 {[%clk 0:00:06]} 27. Nxg5 {[%clk 0:01:56]}  fxg4 {[%clk 0:00:05]} 28. Nxe6 {[%clk 0:01:56]}  Re8 {[%clk 0:00:05]} 29. Nf4 {[%clk 0:01:56]}  Re1 {[%clk 0:00:05]} 30. h3 {[%clk 0:01:51]}  Rxf1+ {[%clk 0:00:03]} 31. Kxf1 {[%clk 0:01:50]}  a4 {[%clk 0:00:02]} 32. Nd3 {[%clk 0:01:48]}  a3 {[%clk 0:00:02]} 33. hxg4 {[%clk 0:01:46]}  a2 {[%clk 0:00:01]} 34. Nxb2 {[%clk 0:01:47]}  a1=Q+ {[%clk 0:00:01]} 35. Ke2 {[%clk 0:01:46]}  Qxb2+ {[%clk 0:00:01]} 36. Kf3 {[%clk 0:01:47]}  Bc5 {[%clk 0:00:01]} 37. g5 {[%clk 0:01:46]}  Qxf2+ {[%clk 0:00:01]} 38. Kg4 {[%clk 0:01:46]}  Qxg2+ {[%clk 0:00:02]} 39. Kh5 {[%clk 0:01:46]}  Qxg5+ {[%clk 0:00:01]} 40. Kxg5 {[%clk 0:01:45]}  h3 {[%clk 0:00:02]} 41. Kg4 {[%clk 0:01:46]}  h2 {[%clk 0:00:02]} 0-1


[Site "https://www.chess.com"]

[Event "Titled Tuesday Blitz February 14 Late 2023"]
[White "Toktomushev, Teimur"]
[Black "Wang, Alexander J"]
[WhiteFideId "14176726"]
[BlackFideId "30955270"]
[WhiteElo "2239"]
[BlackElo "1815"]
[Result "1-0"]
[Round "06"]
[TimeControl "180+2"]
[Date "2023.02.14"]
[WhiteClock "0:00:06"]
[BlackClock "0:00:15"]

1. d4 {[%clk 0:02:59]}  d5 {[%clk 0:02:56]} 2. c4 {[%clk 0:02:59]}  e6 {[%clk 0:02:56]} 3. Nc3 {[%clk 0:03:00]}  c5 {[%clk 0:02:56]} 4. e3 {[%clk 0:02:55]}  Nf6 {[%clk 0:02:55]} 5. Nf3 {[%clk 0:02:53]}  Nc6 {[%clk 0:02:55]} 6. cxd5 {[%clk 0:02:52]}  exd5 {[%clk 0:02:56]} 7. Bb5 {[%clk 0:02:52]}  Bd7 {[%clk 0:02:55]} 8. O-O {[%clk 0:02:52]}  a6 {[%clk 0:02:41]} 9. Bxc6 {[%clk 0:02:51]}  Bxc6 {[%clk 0:02:42]} 10. b3 {[%clk 0:02:50]}  Be7 {[%clk 0:02:32]} 11. Ba3 {[%clk 0:02:38]}  cxd4 {[%clk 0:02:22]} 12. Bxe7 {[%clk 0:02:37]}  Qxe7 {[%clk 0:02:21]} 13. Nxd4 {[%clk 0:02:35]}  O-O {[%clk 0:01:58]} 14. Rc1 {[%clk 0:02:34]}  Rac8 {[%clk 0:01:52]} 15. Qf3 {[%clk 0:02:24]}  Ne4 {[%clk 0:01:35]} 16. Nxe4 {[%clk 0:02:22]}  dxe4 {[%clk 0:01:36]} 17. Qg4 {[%clk 0:02:19]}  Bd7 {[%clk 0:01:22]} 18. Qg3 {[%clk 0:02:19]}  f5 {[%clk 0:01:18]} 19. h4 {[%clk 0:01:58]}  Kh8 {[%clk 0:01:09]} 20. Qf4 {[%clk 0:01:52]}  Qf6 {[%clk 0:01:06]} 21. Rc7 {[%clk 0:01:49]}  Rxc7 {[%clk 0:01:04]} 22. Qxc7 {[%clk 0:01:50]}  Bc6 {[%clk 0:01:04]} 23. Rd1 {[%clk 0:01:09]}  h6 {[%clk 0:00:54]} 24. Nxc6 {[%clk 0:01:05]}  Qxc6 {[%clk 0:00:55]} 25. Qxc6 {[%clk 0:00:56]}  bxc6 {[%clk 0:00:56]} 26. Rc1 {[%clk 0:00:57]}  Rc8 {[%clk 0:00:40]} 27. Rc5 {[%clk 0:00:51]}  g6 {[%clk 0:00:39]} 28. h5 {[%clk 0:00:51]}  Kg7 {[%clk 0:00:39]} 29. a4 {[%clk 0:00:40]}  Kf6 {[%clk 0:00:37]} 30. hxg6 {[%clk 0:00:40]}  Kxg6 {[%clk 0:00:37]} 31. b4 {[%clk 0:00:37]}  Kf6 {[%clk 0:00:29]} 32. b5 {[%clk 0:00:14]}  axb5 {[%clk 0:00:30]} 33. axb5 {[%clk 0:00:14]}  Ke6 {[%clk 0:00:30]} 34. bxc6 {[%clk 0:00:14]}  Rc7 {[%clk 0:00:30]} 35. Kh2 {[%clk 0:00:13]}  Rc8 {[%clk 0:00:19]} 36. c7 {[%clk 0:00:11]}  Kf6 {[%clk 0:00:17]} 37. Kh3 {[%clk 0:00:06]}  Kg6 {[%clk 0:00:16]} 38. Rc6+ {[%clk 0:00:06]}  Kg5 {[%clk 0:00:16]} 39. Kg3 {[%clk 0:00:06]}  h5 {[%clk 0:00:16]} 40. f4+ {[%clk 0:00:05]}  exf3 {[%clk 0:00:16]} 41. gxf3 {[%clk 0:00:06]}  h4+ {[%clk 0:00:16]} 42. Kh3 {[%clk 0:00:06]}  Kh5 {[%clk 0:00:16]} 43. f4 {[%clk 0:00:06]}  Rf8 {[%clk 0:00:14]} 44. c8=Q {[%clk 0:00:05]}  Rxc8 {[%clk 0:00:15]} 45. Rxc8 {[%clk 0:00:06]} 1-0


[Site "https://www.chess.com"]